bitfinex/quotes_SOLUSD_20250326
["timestamp","ask_amount","ask_price","bid_price","bid_amount"]
[1743011650579,0.0001,138.45,138.43,7.2536]
[1743011654879,0.0001,138.45,138.44,33.87444529]
[1743011655094,0.0001,138.45,138.44,34.01660686]
[1743011656089,0.0001,138.45,138.44,116.75876843]
[1743011656496,0.063,138.49,138.48,18.79181043]
[1743011656678,0.063,138.49,138.48,34.01660686]
[1743011656879,0.063,138.49,138.48,41.23780686]
[1743011659599,0.0001,138.49,138.48,41.37996843]
[1743011659910,0.0001,138.49,138.48,124.12213]
[1743011671780,0.0001,138.49,138.48,123.83780686]
[1743011678417,0.0001,138.49,138.48,26.01301043]
[1743011678617,0.0001,138.49,138.48,7.2212]
[1743011681417,0.0001,138.49,138.48,22.44599643]
[1743011682196,0.0001,138.49,138.48,7.2212]
[1743011683019,0.0001,138.49,138.47,7.2515]
[1743011683402,0.0001,138.49,138.47,22.47629643]
[1743011684316,0.0001,138.49,138.47,7.2515]
[1743011685209,0.0001,138.49,138.47,22.47629643]
[1743011690324,0.0001,138.49,138.47,7.2515]
[1743011690528,0.0001,138.49,138.47,22.47629643]
[1743011691730,0.0001,138.49,138.47,7.2515]
[1743011692031,0.0001,138.49,138.47,22.47629643]
[1743011692619,0.0001,138.49,138.48,33.87444529]
[1743011693726,0.0001,138.49,138.48,41.09564529]
[1743011694626,0.0001,138.49,138.48,25.87084886]
[1743011695230,0.0001,138.49,138.47,19.2516]
[1743011699031,15.22479643,138.48,138.47,12.03]
[1743011699234,21.66479643,138.48,138.47,12.03]
[1743011701342,36.86319643,138.48,138.47,12.03]
[1743011701631,37.005358,138.48,138.47,12.03]
[1743011701833,0.14216157,138.47,138.44,0.03]
[1743011702022,15.22479643,138.45,138.44,0.03]
[1743011706825,97.22479643,138.46,138.44,0.03]
[1743011708033,15.22479643,138.45,138.44,0.03]
[1743011715144,22.44759643,138.45,138.44,0.03]
[1743011715942,0.14216157,138.44,138.43,0.03]
[1743011716242,22.590258,138.44,138.43,0.03]
[1743011720351,15.366958,138.44,138.43,0.03]
[1743011721749,15.22479643,138.44,138.43,0.03]
[1743011722333,21.66479643,138.44,138.43,0.03]
[1743011724955,28.88809643,138.44,138.43,0.03]
[1743011726166,29.030258,138.44,138.43,0.03]
[1743011728755,21.66479643,138.44,138.43,0.03]
[1743011729555,28.88809643,138.44,138.43,0.03]
[1743011729756,21.66479643,138.44,138.43,0.03]
[1743011731043,28.88809643,138.44,138.43,0.03]
[1743011731961,29.030258,138.44,138.43,0.03]
[1743011736957,21.66479643,138.44,138.43,0.03]
[1743011737163,28.88809643,138.44,138.43,0.03]
[1743011740468,28.95109643,138.44,138.43,0.03]
[1743011740943,21.72779643,138.44,138.43,0.03]
[1743011741142,0.063,138.44,138.43,0.03]
[1743011741358,0.063,138.44,138.43,15.25479643]
[1743011742461,0.063,138.44,138.43,0.03]
[1743011742954,0.063,138.44,138.43,7.2538]
[1743011749767,0.063,138.44,138.43,22.47859643]
[1743011750167,0.063,138.44,138.43,41.27040686]
[1743011750374,0.063,138.44,138.43,47.66660686]
[1743011750375,0.0001,138.44,138.43,47.66660686]
[1743011750665,0.063,138.47,138.46,20.14216157]
[1743011750983,0.063,138.47,138.46,116.51069258]
[1743011751211,0.063,138.47,138.46,55.61150686]
[1743011751475,0.063,138.47,138.46,62.83380686]
[1743011751643,0.0001,138.49,138.48,0.14216157]
[1743011751843,0.0001,138.49,138.48,15.366958]
[1743011752963,0.0001,138.49,138.47,18.64964886]
[1743011753268,0.0001,138.49,138.46,21.5949]
[1743011753660,0.0001,138.49,138.46,36.81969643]
[1743011754267,0.0001,138.49,138.46,44.04189643]
[1743011755105,0.0001,138.49,138.47,15.22479643]
[1743011755964,0.0001,138.49,138.47,22.44649643]
[1743011758293,0.0001,138.49,138.48,15.22479643]
[1743011759202,0.0001,138.49,138.47,41.09614529]
[1743011759507,0.0001,138.49,138.47,33.87444529]
[1743011759874,0.0001,138.49,138.46,44.04169643]
[1743011760181,0.0001,138.49,138.45,22.44739643]
[1743011760899,0.0001,138.49,138.46,15.22479643]
[1743011761788,0.0001,138.49,138.45,22.44739643]
[1743011762098,15.22479643,138.47,138.43,16.92109643]
[1743011762392,0.0001,138.49,138.43,0.03]
[1743011762393,15.22479643,138.46,138.43,0.03]
[1743011763799,22.44709643,138.46,138.43,0.03]
[1743011764507,22.47709643,138.46,138.43,0.03]
[1743011765399,15.25479643,138.46,138.43,0.03]
[1743011766376,0.03,138.46,138.43,0.03]
[1743011766910,15.25479643,138.46,138.43,0.03]
[1743011768113,0.03,138.46,138.43,0.03]
[1743011768917,0.03,138.46,138.45,33.87444529]
[1743011769374,0.03,138.46,138.45,34.01660686]
[1743011769700,0.03,138.46,138.45,41.23940686]
[1743011778622,0.03,138.46,138.45,41.09724529]
[1743011778815,15.25479643,138.46,138.43,82.63]
[1743011779011,15.22479643,138.45,138.43,82.63]
[1743011779399,21.69479643,138.46,138.43,89.8537]
[1743011779824,21.69479643,138.46,138.43,7.2537]
[1743011780910,6.47,138.46,138.43,0.03]
[1743011782629,21.69479643,138.46,138.43,0.03]
[1743011784126,28.91709643,138.46,138.43,0.03]
[1743011784428,15.22479643,138.45,138.43,0.03]
[1743011784833,21.69479643,138.46,138.43,0.03]
[1743011785130,6.47,138.46,138.43,0.03]
[1743011785526,6.47,138.46,138.43,15.25479643]
[1743011785919,6.47,138.46,138.43,0.03]
[1743011786327,6.47,138.46,138.43,7.2538]
[1743011787328,21.69479643,138.46,138.43,7.2538]
[1743011787530,15.22479643,138.45,138.43,0.03]
[1743011788232,15.22479643,138.44,138.43,0.03]
[1743011788624,22.44809643,138.44,138.43,0.03]
[1743011790318,28.865058,138.44,138.43,0.03]
[1743011791733,21.49959643,138.44,138.43,0.03]
[1743011791935,82.0,138.45,138.43,0.03]
[1743011792117,82.0,138.45,138.43,15.25479643]
[1743011792318,82.0,138.45,138.43,0.03]
[1743011795039,23.78912283,138.44,138.43,0.03]
[1743011795530,30.22912283,138.44,138.43,0.03]
[1743011797838,39.1567844,138.44,138.43,0.03]
[1743011799922,20.14216157,138.42,138.41,0.03]
[1743011800122,43.9312844,138.42,138.41,0.03]
[1743011800837,51.1555844,138.42,138.41,0.03]
[1743011806145,43.78912283,138.42,138.41,0.03]
[1743011806743,43.78912283,138.43,138.41,0.03]
[1743011806939,6.44,138.42,138.41,0.03]
[1743011807124,30.22912283,138.42,138.41,0.03]
[1743011811450,23.78912283,138.42,138.41,0.03]
[1743011811648,30.22912283,138.42,138.41,0.03]
[1743011812355,23.78912283,138.42,138.41,0.03]
[1743011812530,30.22912283,138.42,138.41,0.03]
[1743011812931,21.67455719,138.42,138.41,0.03]
[1743011813761,111.04101876,138.42,138.41,0.03]
[1743011814233,29.04101876,138.42,138.41,0.03]
[1743011815249,37.62396237,138.42,138.41,0.03]
[1743011817558,57.33686237,138.42,138.38,0.03]
[1743011817755,47.6350016,138.39,138.38,0.03]
[1743011818459,23.8175008,138.39,138.38,0.03]
[1743011818635,23.95966237,138.39,138.38,0.03]
[1743011818844,47.77716317,138.39,138.38,0.03]
[1743011819751,55.00306317,138.39,138.38,0.03]
[1743011821045,31.18556237,138.39,138.38,0.03]
[1743011822862,31.0434008,138.39,138.38,0.03]
[1743011825454,23.8175008,138.39,138.38,0.03]
[1743011825652,31.0434008,138.39,138.38,0.03]
[1743011826964,23.8175008,138.39,138.38,0.03]
[1743011827161,31.0434008,138.39,138.38,0.03]
[1743011828570,31.18556237,138.39,138.38,0.03]
[1743011829054,55.00306317,138.39,138.38,0.03]
[1743011834679,31.18556237,138.39,138.38,0.03]
[1743011835049,23.8175008,138.39,138.38,0.03]
[1743011835252,23.8175008,138.4,138.38,0.03]
[1743011835446,6.44,138.39,138.38,0.03]
[1743011835869,23.8175008,138.4,138.38,0.03]
[1743011836257,30.2575008,138.39,138.38,0.03]
[1743011837075,21.681558,138.39,138.38,0.03]
[1743011837569,6.44,138.4,138.38,0.03]
[1743011838369,6.44,138.4,138.38,15.271558]
[1743011838556,6.44,138.4,138.38,0.03]
[1743011838752,0.063,138.41,138.38,7.2564]
[1743011838951,0.063,138.41,138.39,15.241558]
[1743011840676,0.063,138.41,138.4,15.241558]
[1743011840975,0.063,138.41,138.4,47.19550686]
[1743011841163,0.063,138.41,138.4,48.73440686]
[1743011841875,0.063,138.43,138.41,18.64964886]
[1743011842073,0.063,138.43,138.42,15.241558]
[1743011842452,0.063,138.43,138.42,33.89120686]
[1743011842880,0.03,138.46,138.43,0.14216157]
[1743011843060,0.03,138.46,138.45,15.241558]
[1743011843775,0.03,138.46,138.45,34.03336843]
[1743011843979,0.03,138.46,138.45,40.41106843]
[1743011844879,0.03,138.46,138.45,56.16691529]
[1743011846286,0.03,138.46,138.44,25.41160486]
[1743011846466,0.03,138.46,138.44,1.637]
[1743011848551,23.80460486,138.46,138.44,1.637]
[1743011848757,30.22460486,138.46,138.44,1.637]
[1743011850782,6.45,138.46,138.44,1.637]
[1743011851980,30.22460486,138.46,138.44,1.637]
[1743011853961,6.45,138.46,138.44,1.637]
[1743011854267,6.45,138.46,138.44,8.8603]
[1743011854760,5.65,138.46,138.44,8.8603]
[1743011856392,5.65,138.46,138.44,1.637]
[1743011857190,5.65,138.46,138.42,30.99870486]
[1743011857371,23.77460486,138.45,138.41,33.85634886]
[1743011857695,23.77460486,138.45,138.41,8.7559]
[1743011858378,118.64690486,138.46,138.41,32.53050486]
[1743011858579,111.42460486,138.46,138.41,32.53050486]
[1743011859992,23.77460486,138.45,138.41,8.7559]
[1743011860186,23.77460486,138.44,138.41,1.531]
[1743011860387,23.77460486,138.43,138.39,25.87534886]
[1743011860584,23.77460486,138.43,138.38,32.59450486]
[1743011860793,105.77460486,138.44,138.39,23.77460486]
[1743011860989,82.0,138.44,138.4,23.77460486]
[1743011861188,82.0,138.44,138.41,23.77460486]
[1743011861784,82.0,138.44,138.41,23.83760486]
[1743011862185,82.0,138.44,138.41,0.063]
[1743011863275,105.77460486,138.44,138.41,0.063]
[1743011864191,112.19460486,138.44,138.41,0.063]
[1743011864379,105.77460486,138.44,138.41,0.063]
[1743011864581,88.42,138.44,138.41,0.063]
[1743011864784,6.42,138.44,138.41,0.063]
[1743011864983,6.42,138.44,138.41,15.29063463]
[1743011865304,6.42,138.44,138.41,0.063]
[1743011865598,6.42,138.44,138.42,15.22763463]
[1743011866107,6.42,138.44,138.41,33.94028349]
[1743011866503,6.42,138.44,138.42,7.2243]
[1743011866989,6.42,138.45,138.41,41.16488349]
[1743011867179,6.42,138.45,138.41,33.94028349]
[1743011867699,6.42,138.45,138.41,41.16508349]
[1743011868590,6.42,138.45,138.41,25.93744886]
[1743011868780,6.42,138.45,138.41,41.16508349]
[1743011869699,28.87053463,138.45,138.41,18.71264886]
[1743011870190,28.87053463,138.45,138.41,0.063]
[1743011870191,15.22763463,138.44,138.41,0.063]
[1743011871317,22.45133463,138.44,138.41,0.063]
[1743011871503,15.22763463,138.43,138.41,0.063]
[1743011872401,7.2237,138.44,138.41,0.063]
[1743011872608,22.45133463,138.44,138.41,0.063]
[1743011876802,104.45133463,138.44,138.41,0.063]
[1743011877012,15.22763463,138.42,138.41,0.063]
[1743011878487,15.3697962,138.42,138.41,0.063]
[1743011878691,22.5940962,138.42,138.41,0.063]
[1743011880610,27.36806157,138.39,138.38,0.03]
[1743011880788,115.87704869,138.39,138.38,0.03]
[1743011882400,0.14216157,138.38,138.34,0.03]
[1743011882589,15.22763463,138.35,138.34,0.03]
[1743011883002,22.45563463,138.35,138.34,0.03]
[1743011884722,22.5977962,138.35,138.34,0.03]
[1743011887305,24.1725962,138.35,138.34,0.03]
[1743011887506,24.6725962,138.35,138.34,0.03]
[1743011887698,0.14216157,138.34,138.33,0.03]
[1743011887898,21.7897962,138.34,138.33,0.03]
[1743011889125,29.0182962,138.34,138.33,0.03]
[1743011890815,237.5982962,138.34,138.33,0.03]
[1743011895823,20.0,138.32,138.31,0.03]
[1743011896025,96.13817315,138.32,138.31,0.03]
[1743011896736,35.22763463,138.32,138.31,0.03]
[1743011897220,103.36777315,138.32,138.31,0.03]
[1743011898104,103.36777315,138.32,138.29,0.063]
[1743011898105,0.14216157,138.31,138.29,0.063]
[1743011898425,15.3697962,138.3,138.29,0.063]
[1743011899318,22.6003962,138.3,138.29,0.063]
[1743011902213,104.6003962,138.3,138.29,0.063]
[1743011902936,20.0,138.28,138.24,1.5868]
[1743011903117,20.14216157,138.25,138.24,0.063]
[1743011903428,42.6029962,138.25,138.24,0.063]
[1743011911536,35.22763463,138.25,138.24,0.063]
[1743011911733,15.22763463,138.26,138.24,0.063]
[1743011911919,6.44,138.25,138.24,0.063]
[1743011913551,21.66763463,138.25,138.24,0.063]
[1743011914044,6.44,138.25,138.24,0.063]
[1743011919241,21.66763463,138.25,138.24,0.063]
[1743011919626,6.44,138.25,138.24,0.063]
[1743011920230,15.22763463,138.26,138.24,0.063]
[1743011920431,6.44,138.25,138.24,0.063]
[1743011926049,6.44,138.25,138.24,15.29063463]
[1743011926258,82.063,138.27,138.24,15.29063463]
[1743011926423,88.503,138.27,138.24,15.29063463]
[1743011926825,82.063,138.27,138.25,7.2332]
[1743011927928,82.063,138.27,138.24,7.2965]
[1743011928947,88.503,138.27,138.24,7.2965]
[1743011929243,103.73063463,138.27,138.24,7.2965]
[1743011929548,103.73063463,138.27,138.24,0.063]
[1743011931132,15.22763463,138.25,138.24,0.063]
[1743011931733,15.22763463,138.26,138.24,0.063]
[1743011932254,103.73063463,138.27,138.24,0.063]
[1743011932832,110.96293463,138.27,138.24,0.063]
[1743011933435,22.46043463,138.26,138.24,0.063]
[1743011933935,15.22763463,138.26,138.24,0.063]
[1743011935355,104.46043463,138.26,138.24,0.063]
[1743011935734,15.22763463,138.25,138.24,0.063]
[1743011936742,97.22763463,138.26,138.24,0.063]
[1743011936934,82.0,138.26,138.24,0.063]
[1743011939435,88.42,138.26,138.24,0.063]
[1743011941061,82.0,138.26,138.24,0.063]
[1743011941257,6.42,138.25,138.24,0.063]
[1743011941434,21.64763463,138.25,138.24,0.063]
[1743011942237,6.42,138.25,138.24,0.063]
[1743011942434,21.64763463,138.25,138.24,0.063]
[1743011943068,6.42,138.25,138.24,0.063]
[1743011945276,82.0,138.26,138.24,0.063]
[1743011945476,6.42,138.25,138.24,0.063]
[1743011946175,82.0,138.26,138.24,15.29063463]
[1743011946176,88.42,138.26,138.24,15.29063463]
[1743011946375,88.42,138.26,138.24,0.063]
[1743011947571,88.42,138.26,138.24,15.29063463]
[1743011947774,88.42,138.26,138.25,7.2332]
[1743011948069,88.42,138.26,138.25,22.46083463]
[1743011948656,82.0,138.26,138.25,22.46083463]
[1743011950363,82.0,138.26,138.25,7.2332]
[1743011950545,82.0,138.26,138.24,15.29063463]
[1743011951163,82.0,138.26,138.25,15.22763463]
[1743011951552,82.0,138.26,138.24,21.73753463]
[1743011952446,0.063,138.27,138.25,7.2332]
[1743011952653,0.063,138.27,138.25,22.46083463]
[1743011953898,0.063,138.27,138.25,7.2332]
[1743011954670,0.063,138.27,138.24,21.73753463]
[1743011954855,15.29063463,138.27,138.24,0.063]
[1743011955055,0.063,138.27,138.24,0.063]
[1743011956177,0.063,138.27,138.25,15.22763463]
[1743011958279,0.063,138.27,138.24,15.29063463]
[1743011958468,0.063,138.27,138.24,0.063]
[1743011958779,0.063,138.27,138.24,15.29063463]
[1743011959476,0.063,138.27,138.24,0.063]
[1743011959675,15.22763463,138.26,138.24,0.063]
[1743011962355,22.46063463,138.26,138.24,0.063]
[1743011962560,7.233,138.26,138.24,0.063]
[1743011964373,82.0,138.25,138.24,0.063]
[1743011964558,89.2332,138.25,138.24,0.063]
[1743011964764,104.46083463,138.25,138.24,0.063]
[1743011966678,82.0,138.25,138.24,0.063]
[1743011966982,0.063,138.27,138.24,0.063]
[1743011966983,0.063,138.27,138.24,15.29063463]
[1743011967189,0.063,138.27,138.25,15.22763463]
[1743011969389,0.063,138.27,138.25,22.46043463]
[1743011970077,0.063,138.27,138.25,22.46053463]
[1743011971189,0.063,138.27,138.26,35.66064506]
[1743011971487,0.063,138.27,138.26,49.48974506]
[1743011971785,97.22763463,138.34,138.26,67.8558682]
[1743011971786,6.42,138.32,138.26,67.8558682]
[1743011971987,6.42,138.32,138.31,15.22763463]
[1743011972862,6.42,138.32,138.3,15.22763463]
[1743011973590,6.42,138.32,138.3,22.45803463]
[1743011974084,6.42,138.32,138.31,33.87728349]
[1743011974795,6.42,138.32,138.31,18.64964886]
[1743011977976,6.42,138.32,138.3,15.22763463]
[1743011980297,6.483,138.32,138.3,15.22763463]
[1743011982499,6.483,138.32,138.29,15.22763463]
[1743011982702,6.483,138.32,138.27,18.67964886]
[1743011982703,15.22763463,138.31,138.27,18.67964886]
[1743011982905,15.22763463,138.31,138.27,25.91174886]
[1743011983204,28.94023463,138.32,138.28,15.22763463]
[1743011983790,28.94023463,138.32,138.27,41.13938349]
[1743011985106,15.22763463,138.29,138.27,0.03]
[1743011985699,15.22763463,138.3,138.27,0.03]
[1743011986788,15.22763463,138.28,138.27,0.03]
[1743011986995,22.45933463,138.28,138.27,0.03]
[1743011987196,0.14216157,138.27,138.24,0.063]
[1743011987405,15.22763463,138.25,138.24,0.063]
[1743011989315,22.46083463,138.25,138.24,0.063]
[1743011992413,28.88053463,138.26,138.24,0.063]
[1743011993699,6.42,138.25,138.24,0.063]
[1743011994016,6.42,138.25,138.21,33.44028349]
[1743011994213,6.42,138.25,138.2,22.51343463]
[1743011994214,21.64763463,138.25,138.2,22.51343463]
[1743011995917,28.88103463,138.25,138.2,22.51343463]
[1743011996700,21.64763463,138.25,138.2,22.51343463]
[1743011996897,6.42,138.25,138.21,15.22763463]
[1743011997218,13.6532,138.25,138.21,15.22763463]
[1743012000221,7.2332,138.25,138.21,22.46283463]
[1743012000424,6.42,138.25,138.24,15.22763463]
[1743012000627,6.42,138.25,138.23,15.22763463]
[1743012000834,6.42,138.25,138.21,21.36063463]
[1743012001123,6.42,138.25,138.22,15.22763463]
[1743012001825,6.42,138.25,138.21,13.368]
[1743012001826,6.42,138.25,138.21,15.22763463]
[1743012002019,21.64763463,138.25,138.2,33.92728349]
[1743012002216,21.64763463,138.25,138.2,18.69964886]
[1743012002217,15.22763463,138.24,138.2,18.69964886]
[1743012002402,22.46173463,138.24,138.2,18.69964886]
[1743012003114,15.22763463,138.23,138.2,0.05]
[1743012003714,82.0,138.25,138.21,15.22763463]
[1743012003914,97.22763463,138.25,138.2,33.92728349]
[1743012004097,89.2334,138.25,138.2,0.05]
[1743012004299,7.2343,138.23,138.2,0.05]
[1743012004619,22.46153463,138.24,138.2,0.05]
[1743012005317,15.29063463,138.24,138.2,0.05]
[1743012006009,15.29063463,138.24,138.2,18.69964886]
[1743012006428,15.22763463,138.22,138.2,0.05]
[1743012006618,6.42,138.21,138.2,0.05]
[1743012006926,21.64763463,138.21,138.2,0.05]
[1743012008311,103.7897962,138.21,138.2,0.05]
[1743012008513,111.0250962,138.21,138.2,0.05]
[1743012010525,29.0250962,138.21,138.2,0.05]
[1743012012927,0.14216157,138.2,138.19,0.03]
[1743012013128,15.22763463,138.16,138.15,0.03]
[1743012013824,35.22763463,138.17,138.15,0.03]
[1743012014002,21.64763463,138.16,138.15,0.03]
[1743012014204,136.863,138.24,138.15,0.03]
[1743012014511,15.22763463,138.2,138.15,0.03]
[1743012014717,15.22763463,138.17,138.15,0.03]
[1743012014919,15.22763463,138.16,138.15,0.03]
[1743012015109,15.3697962,138.16,138.15,0.03]
[1743012015426,15.22763463,138.16,138.15,0.03]
[1743012015806,13.6576,138.17,138.15,0.03]
[1743012016006,15.22763463,138.16,138.15,0.03]
[1743012016208,15.3697962,138.16,138.15,0.03]
[1743012017905,20.14216157,138.14,138.13,0.03]
[1743012018109,35.3697962,138.14,138.13,0.03]
[1743012018311,20.0,138.1,138.08,0.04353963]
[1743012018531,21.68763463,138.09,138.08,0.04353963]
[1743012018728,6.46,138.09,138.08,0.04353963]
[1743012019223,15.3697962,138.09,138.08,0.04353963]
[1743012019524,21.70763463,138.1,138.08,2.33917883]
[1743012019731,6.48,138.1,138.08,2.33917883]
[1743012020413,21.70763463,138.1,138.08,2.33917883]
[1743012020908,6.48,138.1,138.08,2.33917883]
[1743012022732,15.22763463,138.11,138.08,11.19327883]
[1743012022733,82.0,138.11,138.08,11.19327883]
[1743012022912,6.5,138.12,138.1,33.87728349]
[1743012023244,6.5,138.15,138.12,18.64964886]
[1743012023405,82.0,138.18,138.14,15.22763463]
[1743012023605,82.0,138.18,138.15,15.22763463]
[1743012023606,88.5,138.18,138.15,15.22763463]
[1743012024002,88.5,138.18,138.14,1.6133]
[1743012024003,88.5,138.18,138.16,7.2379]
[1743012024904,88.5,138.18,138.15,31.11922348]
[1743012025109,82.0,138.18,138.15,31.11922348]
[1743012025726,6.52,138.19,138.16,23.88102348]
[1743012025921,6.52,138.19,138.17,23.88102348]
[1743012026425,105.88102348,138.23,138.18,23.88102348]
[1743012026620,6.54,138.22,138.18,23.88102348]
[1743012027016,6.54,138.22,138.2,23.88102348]
[1743012027332,6.54,138.22,138.19,23.88102348]
[1743012028027,6.54,138.22,138.18,23.88102348]
[1743012029017,6.54,138.22,138.19,18.64964886]
[1743012029225,6.54,138.22,138.19,42.53067234]
[1743012029726,30.42102348,138.22,138.17,43.88102348]
[1743012029927,37.27402907,138.22,138.17,43.88102348]
[1743012030333,6.15810559,138.22,138.18,42.53067234]
[1743012031134,6.15810559,138.22,138.19,23.88102348]
[1743012031521,6.15810559,138.22,138.18,42.53067234]
[1743012032333,6.15810559,138.22,138.18,49.76747234]
[1743012033032,6.56,138.22,138.18,49.76747234]
[1743012034137,30.44102348,138.22,138.18,49.76747234]
[1743012034347,37.67582348,138.22,138.18,49.76747234]
[1743012034548,30.44102348,138.22,138.18,49.76747234]
[1743012035242,6.56,138.22,138.18,49.76747234]
[1743012035442,6.56,138.22,138.19,23.88102348]
[1743012036120,6.56,138.22,138.18,49.76747234]
[1743012037415,6.56,138.22,138.19,23.88102348]
[1743012037616,6.56,138.22,138.18,49.76747234]
[1743012037834,30.44102348,138.22,138.18,49.76747234]
[1743012038138,37.67592348,138.22,138.18,18.64964886]
[1743012038342,37.67592348,138.22,138.18,42.53067234]
[1743012038730,37.67592348,138.22,138.18,23.88102348]
[1743012038929,37.67592348,138.22,138.17,31.11832348]
[1743012039130,6.56,138.22,138.18,23.88102348]
[1743012039335,6.56,138.22,138.19,23.88102348]
[1743012039924,6.56,138.22,138.18,42.53067234]
[1743012040726,6.56,138.22,138.18,49.76717234]
[1743012041545,6.56,138.22,138.19,23.88102348]
[1743012042437,6.56,138.22,138.18,49.76717234]
[1743012043146,6.56,138.22,138.19,23.88102348]
[1743012043642,0.063,138.22,138.21,23.88102348]
[1743012044232,0.063,138.22,138.21,42.53067234]
[1743012044829,0.063,138.22,138.21,41.15099421]
[1743012045342,0.0001,138.22,138.21,41.29315578]
[1743012046939,0.063,138.24,138.22,18.79181043]
[1743012047248,0.063,138.24,138.23,42.77916419]
[1743012047438,0.063,138.24,138.23,44.32996419]
[1743012047745,0.063,138.24,138.23,68.17515638]
[1743012048451,0.063,138.24,138.23,150.77515638]
[1743012048656,0.063,138.27,138.26,20.14216157]
[1743012048864,0.063,138.27,138.26,69.86970262]
[1743012051038,0.063,138.27,138.26,152.75402576]
[1743012051236,0.0001,138.27,138.26,152.75402576]
[1743012053660,0.0001,138.27,138.26,152.46970262]
[1743012055954,0.0001,138.27,138.26,152.75402576]
[1743012056259,0.063,138.32,138.28,0.28432314]
[1743012056452,0.063,138.32,138.31,23.84519219]
[1743012056971,0.063,138.32,138.31,31.07529219]
[1743012059663,0.063,138.32,138.31,49.86710262]
[1743012060665,0.063,138.32,138.31,49.72494105]
[1743012060867,0.063,138.32,138.31,25.87974886]
[1743012062667,0.063,138.32,138.31,49.72494105]
[1743012063366,0.063,138.32,138.29,7.2306]
[1743012063543,0.063,138.32,138.3,18.64964886]
[1743012065243,0.063,138.32,138.3,25.87974886]
[1743012066571,0.063,138.32,138.3,49.72494105]
[1743012066732,0.063,138.32,138.31,42.63700262]
[1743012067451,0.063,138.32,138.31,49.86710262]
[1743012068853,0.063,138.38,138.33,23.98735376]
[1743012069157,23.90819219,138.38,138.33,23.84519219]
[1743012069366,23.84519219,138.35,138.32,18.64964886]
[1743012069944,23.84519219,138.33,138.27,0.03]
[1743012070144,23.84519219,138.3,138.27,0.03]
[1743012070358,23.84519219,138.3,138.27,20.03]
[1743012070854,23.84519219,138.3,138.28,18.64964886]
[1743012071063,23.84519219,138.31,138.28,18.64964886]
[1743012071539,23.84519219,138.3,138.27,18.67964886]
[1743012071855,23.84519219,138.3,138.27,25.91174886]
[1743012072047,23.84519219,138.31,138.27,25.91174886]
[1743012072254,23.84519219,138.3,138.27,18.67964886]
[1743012072565,23.84519219,138.3,138.27,25.91174886]
[1743012072949,30.32519219,138.29,138.27,0.03]
[1743012073279,23.84519219,138.28,138.27,0.03]
[1743012073641,30.32519219,138.29,138.27,0.03]
[1743012074372,13.7112,138.29,138.27,0.03]
[1743012074574,23.84519219,138.28,138.27,0.03]
[1743012074744,105.84519219,138.28,138.27,0.03]
[1743012075861,31.21905376,138.28,138.27,0.03]
[1743012076460,31.07689219,138.28,138.27,0.03]
[1743012077362,31.21905376,138.28,138.27,0.03]
[1743012077567,36.88636435,138.28,138.27,0.03]
[1743012077743,54.96556435,138.28,138.22,0.03]
[1743012077945,31.07949219,138.23,138.22,0.03]
[1743012078151,37.55949219,138.23,138.22,0.03]
[1743012079364,37.70165376,138.23,138.22,0.03]
[1743012079577,43.83035376,138.23,138.22,0.03]
[1743012079756,36.45389219,138.23,138.22,0.03]
[1743012080166,43.68819219,138.23,138.22,0.03]
[1743012080758,43.83035376,138.23,138.22,0.03]
[1743012082451,36.59605376,138.23,138.22,0.03]